[Event "Elitserien 2019/2020, round 1-3"]
[Site "Uppsala University, Gamla torget, Uppsala, Sweden"]
[Date "2019.10.19"]
[Round "2.23"]
[White "Moreau, Teodor"]
[Black "Rothen, Hakan"]
[Result "1-0"]
[TimeControl "90 minutes for 40 moves + 30 minutes for the rest of the game + 30 seconds per move from move one."]
[WhiteTitle "FM"]
[BlackTitle "FM"]
[WhiteFideId "1701177"]
[BlackFideId "1700723"]
[WhiteElo "2339"]
[BlackElo "2251"]

1. d4 {[%clk 01:30:55]} {[%emt 00:00:04]} Nf6 {[%clk 01:27:35]} {[%emt
00:03:26]} 2. c4 {[%clk 01:30:55]} {[%emt 00:00:29]} e6 {[%clk 01:27:39]}
{[%emt 00:00:15]} 3. Nf3 {[%clk 01:25:21]} {[%emt 00:06:15]} Bb4+ {[%clk
01:27:51]} {[%emt 00:00:19]} 4. Bd2 {[%clk 01:23:49]} {[%emt 00:02:02]} Bxd2+
{[%clk 01:28:03]} {[%emt 00:00:19]} 5. Nbxd2 {[%clk 01:20:53]} {[%emt
00:03:25]} d6 {[%clk 01:26:01]} {[%emt 00:02:32]} 6. g3 {[%clk 01:15:02]}
{[%emt 00:06:21]} Nc6 {[%clk 01:17:12]} {[%emt 00:09:19]} 7. Bg2 {[%clk
01:12:52]} {[%emt 00:02:40]} e5 {[%clk 01:16:55]} {[%emt 00:00:47]} 8. d5
{[%clk 01:10:56]} {[%emt 00:02:26]} Ne7 {[%clk 01:16:41]} {[%emt 00:00:45]} 9.
e4 {[%clk 01:05:50]} {[%emt 00:05:35]} O-O {[%clk 01:15:57]} {[%emt 00:01:14]}
10. O-O {[%clk 01:03:54]} {[%emt 00:02:27]} Bg4 {[%clk 01:10:17]} {[%emt
00:06:10]} 11. Qc2 {[%clk 01:03:03]} {[%emt 00:01:20]} Nd7 {[%clk 01:09:03]}
{[%emt 00:01:44]} 12. Nh4 {[%clk 00:54:07]} {[%emt 00:09:26]} f6 {[%clk
01:03:33]} {[%emt 00:06:01]} 13. b4 {[%clk 00:49:51]} {[%emt 00:04:45]} c5
{[%clk 00:58:47]} {[%emt 00:05:16]} 14. f3 {[%clk 00:17:34]} {[%emt 00:32:47]}
Bh5 {[%clk 00:58:52]} {[%emt 00:00:25]} 15. a3 {[%clk 00:17:51]} {[%emt
00:00:13]} cxb4 {[%clk 00:53:07]} {[%emt 00:06:15]} 16. axb4 {[%clk 00:17:37]}
{[%emt 00:00:44]} Qb6+ {[%emt 00:02:43]} 17. Kh1 {[%clk 00:17:54]} {[%emt
00:00:11]} Rfc8 {[%clk 00:50:29]} {[%emt 00:00:58]} 18. Bh3 {[%clk 00:14:51]}
{[%emt 00:03:32]} Rc7 {[%clk 00:49:23]} {[%emt 00:01:36]} 19. Rfb1 {[%clk
00:11:10]} {[%emt 00:04:12]} Qf2 {[%clk 00:37:11]} {[%emt 00:12:42]} 20. Qd3
{[%clk 00:08:10]} {[%emt 00:03:29]} g5 {[%clk 00:23:41]} {[%emt 00:14:01]} 21.
Ng2 {[%clk 00:04:46]} {[%emt 00:03:54]} Rd8 {[%clk 00:17:15]} {[%emt 00:06:55]}
22. c5 {[%clk 00:02:01]} {[%emt 00:03:15]} dxc5 {[%clk 00:16:35]} {[%emt
00:01:10]} 23. d6 {[%clk 00:02:10]} {[%emt 00:00:21]} Nf8 {[%clk 00:16:41]}
{[%emt 00:00:24]} 24. Rf1 {[%clk 00:02:23]} {[%emt 00:00:17]} 1-0

[Event "Elitserien 2019/2020, round 1-3"]
[Site "Uppsala University, Gamla torget, Uppsala, Sweden"]
[Date "2019.10.19"]
[Round "2.24"]
[White "Malesevic, Nedeljko"]
[Black "Grandell, Anders"]
[Result "0-1"]
[TimeControl "90 minutes for 40 moves + 30 minutes for the rest of the game + 30 seconds per move from move one."]
[WhiteTitle "FM"]
[BlackTitle "FM"]
[WhiteFideId "1703447"]
[BlackFideId "1709771"]
[WhiteElo "2251"]
[BlackElo "2289"]

1. d4 {[%clk 01:30:58]} {[%emt 00:00:01]} Nf6 {[%clk 01:30:56]} {[%emt
00:00:04]} 2. c4 {[%clk 01:31:18]} {[%emt 00:00:09]} c5 {[%clk 01:31:24]}
{[%emt 00:00:02]} 3. d5 {[%clk 01:31:17]} {[%emt 00:00:31]} b5 {[%clk
01:31:52]} {[%emt 00:00:02]} 4. cxb5 {[%clk 01:31:13]} {[%emt 00:00:34]} a6
{[%clk 01:32:18]} {[%emt 00:00:04]} 5. bxa6 {[%clk 01:31:37]} {[%emt 00:00:06]}
Bxa6 {[%clk 01:32:44]} {[%emt 00:00:04]} 6. Nc3 {[%clk 01:32:00]} {[%emt
00:00:08]} g6 {[%clk 01:33:05]} {[%emt 00:00:06]} 7. h4 {[%clk 01:31:53]}
{[%emt 00:00:39]} Bg7 {[%clk 01:33:27]} {[%emt 00:00:08]} 8. Nh3 {[%clk
01:31:05]} {[%emt 00:01:18]} d6 {[%clk 01:33:40]} {[%emt 00:00:18]} 9. Nf4
{[%clk 01:30:45]} {[%emt 00:00:50]} h5 {[%clk 01:34:04]} {[%emt 00:00:06]} 10.
g3 {[%clk 01:28:25]} {[%emt 00:02:49]} Nbd7 {[%clk 01:33:59]} {[%emt 00:00:36]}
11. Bh3 {[%clk 01:24:34]} {[%emt 00:04:21]} O-O {[%clk 01:34:11]} {[%emt
00:00:18]} 12. Nd3 {[%clk 01:21:39]} {[%emt 00:03:24]} Qa5 {[%clk 01:24:03]}
{[%emt 00:10:39]} 13. O-O {[%clk 01:15:10]} {[%emt 00:06:59]} Rfb8 {[%clk
01:22:45]} {[%emt 00:01:48]} 14. f4 {[%clk 01:10:52]} {[%emt 00:04:47]} Ng4
{[%clk 01:04:02]} {[%emt 00:19:13]} 15. Bxg4 {[%clk 00:44:28]} {[%emt
00:26:55]} hxg4 {[%clk 01:04:27]} {[%emt 00:00:05]} 16. Qc2 {[%clk 00:44:02]}
{[%emt 00:00:55]} Bd4+ {[%clk 00:47:36]} {[%emt 00:17:22]} 17. Nf2 {[%clk
00:36:03]} {[%emt 00:08:29]} Nf6 {[%clk 00:42:02]} {[%emt 00:06:04]} 18. Rd1
{[%clk 00:29:37]} {[%emt 00:06:57]} Bc8 {[%clk 00:29:28]} {[%emt 00:13:04]} 19.
Bd2 {[%clk 00:22:49]} {[%emt 00:07:17]} Nh5 {[%clk 00:23:43]} {[%emt 00:06:16]}
20. Kg2 {[%clk 00:15:49]} {[%emt 00:07:30]} Qb6 {[%clk 00:19:10]} {[%emt
00:05:03]} 21. e3 {[%clk 00:10:15]} {[%emt 00:06:04]} Bg7 {[%clk 00:19:21]}
{[%emt 00:00:19]} 22. Rab1 {[%clk 00:09:48]} {[%emt 00:00:58]} f5 {[%clk
00:16:03]} {[%emt 00:03:48]} 23. b3 {[%clk 00:08:19]} {[%emt 00:01:59]} Qb7
{[%clk 00:11:54]} {[%emt 00:04:39]} 24. Kh2 {[%clk 00:04:56]} {[%emt 00:03:52]}
Nf6 {[%clk 00:12:09]} {[%emt 00:00:15]} 25. Be1 {[%clk 00:04:56]} {[%emt
00:00:30]} Bd7 {[%clk 00:11:51]} {[%emt 00:00:48]} 26. a4 {[%clk 00:04:41]}
{[%emt 00:00:45]} Ra6 {[%clk 00:11:57]} {[%emt 00:00:23]} 27. e4 {[%clk
00:03:23]} {[%emt 00:01:48]} fxe4 {[%clk 00:12:04]} {[%emt 00:00:23]} 28. Nfxe4
{[%clk 00:02:49]} {[%emt 00:01:04]} Bf5 {[%clk 00:12:29]} {[%emt 00:00:05]} 29.
Nxf6+ {[%clk 00:01:21]} {[%emt 00:01:58]} Bxf6 {[%clk 00:12:58]} {[%emt
00:00:01]} 30. Ne4 {[%clk 00:01:12]} {[%emt 00:00:39]} Bd4 {[%clk 00:13:23]}
{[%emt 00:00:05]} 31. Qe2 {[%clk 00:01:11]} {[%emt 00:00:30]} Ra7 {[%clk
00:06:54]} {[%emt 00:06:59]} 32. Nc3 {[%clk 00:00:55]} {[%emt 00:00:46]} Bxb1
{[%clk 00:05:33]} {[%emt 00:01:52]} 33. Qe6+ {[%clk 00:01:22]} {[%emt
00:00:03]} Kg7 {[%clk 00:05:49]} {[%emt 00:00:13]} 34. Rxb1 {[%clk 00:01:36]}
{[%emt 00:00:16]} Qd7 {[%clk 00:06:08]} {[%emt 00:00:11]} 35. Nb5 {[%clk
00:01:11]} {[%emt 00:00:56]} Qxe6 {[%clk 00:06:07]} {[%emt 00:00:31]} 36. dxe6
{[%clk 00:01:39]} {[%emt 00:00:02]} Rxb5 {[%clk 00:05:55]} {[%emt 00:00:41]} 37.
axb5 {[%clk 00:02:06]} {[%emt 00:00:04]} Rb7 {[%clk 00:06:23]} {[%emt
00:00:02]} 38. Rd1 {[%clk 00:01:50]} {[%emt 00:00:45]} Rxb5 {[%clk 00:06:25]}
{[%emt 00:00:28]} 39. b4 {[%clk 00:02:15]} {[%emt 00:00:06]} Kf6 {[%clk
00:06:29]} {[%emt 00:00:26]} 40. Kg2 {[%clk 00:01:32]} {[%emt 00:01:13]} Kxe6
{[%clk 00:06:46]} {[%emt 00:00:13]} 41. bxc5 {[%clk 00:01:35]} {[%emt
00:00:27]} dxc5 {[%clk 00:06:58]} {[%emt 00:00:17]} 42. Rd2 {[%clk 00:01:16]}
{[%emt 00:00:49]} Kd5 {[%clk 00:01:55]} {[%emt 00:05:33]} 43. Kf1 {[%clk
00:00:49]} {[%emt 00:00:57]} Rb1 {[%clk 00:00:44]} {[%emt 00:01:41]} 44. Ke2
{[%clk 00:01:11]} {[%emt 00:00:08]} Ke4 {[%clk 00:30:18]} {[%emt 00:00:55]} 45.
Rc2 {[%clk 00:30:15]} {[%emt 00:01:27]} Rb2 {[%clk 00:29:33]} {[%emt 00:01:17]}
46. Kd2 {[%clk 00:29:31]} {[%emt 00:01:12]} Rxc2+ {[%clk 00:29:26]} {[%emt
00:00:37]} 47. Kxc2 {[%clk 00:29:57]} {[%emt 00:00:04]} e6 {[%clk 00:29:06]}
{[%emt 00:00:50]} 48. Ba5 {[%clk 00:19:53]} {[%emt 00:10:34]} c4 {[%clk
00:29:18]} {[%emt 00:00:18]} 49. Bc7 {[%clk 00:19:03]} {[%emt 00:01:20]} Kf3
{[%clk 00:28:44]} {[%emt 00:01:04]} 50. Kd2 {[%clk 00:18:51]} {[%emt 00:00:42]}
Bf2 {[%clk 00:28:42]} {[%emt 00:00:32]} 0-1

[Event "Elitserien 2019/2020, round 1-3"]
[Site "Uppsala University, Gamla torget, Uppsala, Sweden"]
[Date "2019.10.19"]
[Round "2.25"]
[White "Urkedal, Frode Olav Olsen"]
[Black "Haldorsen, Benjamin"]
[Result "1/2-1/2"]
[TimeControl "90 minutes for 40 moves + 30 minutes for the rest of the game + 30 seconds per move from move one."]
[WhiteTitle "GM"]
[BlackTitle "IM"]
[WhiteFideId "1506102"]
[BlackFideId "1512633"]
[WhiteElo "2550"]
[BlackElo "2440"]

1. d4 {[%clk 01:30:56]} {[%emt 00:00:03]} Nf6 {[%clk 01:30:43]} {[%emt
00:00:17]} 2. c4 {[%clk 01:31:22]} {[%emt 00:00:04]} e6 {[%clk 01:31:08]}
{[%emt 00:00:04]} 3. Nc3 {[%clk 01:31:25]} {[%emt 00:00:28]} Bb4 {[%clk
01:31:33]} {[%emt 00:00:05]} 4. Nf3 {[%clk 01:31:44]} {[%emt 00:00:11]} O-O
{[%clk 01:31:56]} {[%emt 00:00:06]} 5. e3 {[%clk 01:31:42]} {[%emt 00:00:33]}
d5 {[%clk 01:26:54]} {[%emt 00:05:31]} 6. Bd2 {[%clk 01:31:51]} {[%emt
00:00:22]} b6 {[%clk 01:23:20]} {[%emt 00:04:05]} 7. cxd5 {[%clk 01:29:21]}
{[%emt 00:02:59]} exd5 {[%clk 01:23:14]} {[%emt 00:00:36]} 8. Bd3 {[%clk
01:29:46]} {[%emt 00:00:05]} Bb7 {[%clk 01:19:57]} {[%emt 00:03:46]} 9. Rc1
{[%clk 01:30:06]} {[%emt 00:00:10]} a6 {[%clk 01:18:01]} {[%emt 00:02:26]} 10.
O-O {[%clk 01:29:15]} {[%emt 00:01:22]} Bd6 {[%clk 01:17:40]} {[%emt 00:00:51]}
11. Ne5 {[%clk 01:29:31]} {[%emt 00:00:14]} c5 {[%clk 01:05:23]} {[%emt
00:12:46]} 12. Be1 {[%clk 01:28:31]} {[%emt 00:01:29]} Nc6 {[%clk 01:02:32]}
{[%emt 00:03:22]} 13. f4 {[%clk 01:28:31]} {[%emt 00:00:30]} cxd4 {[%clk
00:57:45]} {[%emt 00:05:16]} 14. Nxc6 {[%clk 01:26:58]} {[%emt 00:02:03]} Bxc6
{[%clk 00:57:10]} {[%emt 00:01:06]} 15. exd4 {[%clk 01:27:07]} {[%emt
00:00:22]} Bb7 {[%emt 00:09:06]} 16. Bh4 {[%clk 01:25:49]} {[%emt 00:00:39]}
Be7 {[%emt 00:06:20]} 17. f5 {[%clk 01:04:07]} {[%emt 00:17:41]} Re8 {[%clk
00:46:07]} {[%emt 00:02:46]} 18. Kh1 {[%clk 00:59:37]} {[%emt 00:05:00]} Rc8
{[%emt 00:09:54]} 19. Qf3 {[%clk 00:54:54]} {[%emt 00:01:46]} b5 {[%clk
00:34:55]} {[%emt 00:05:43]} 20. Rce1 {[%clk 00:46:17]} {[%emt 00:09:08]} Qb6
{[%clk 00:32:33]} {[%emt 00:02:52]} 21. Bf2 {[%clk 00:38:45]} {[%emt 00:08:02]}
Bd6 {[%clk 00:25:07]} {[%emt 00:07:56]} 22. Bb1 {[%clk 00:30:13]} {[%emt
00:09:02]} Bc6 {[%clk 00:23:16]} {[%emt 00:02:21]} 23. Qd1 {[%clk 00:27:09]}
{[%emt 00:03:34]} Rxe1 {[%clk 00:20:20]} {[%emt 00:03:26]} 24. Rxe1 {[%clk
00:27:16]} {[%emt 00:00:23]} Re8 {[%clk 00:20:30]} {[%emt 00:00:21]} 25. Rxe8+
{[%clk 00:26:48]} {[%emt 00:00:58]} Bxe8 {[%clk 00:20:13]} {[%emt 00:00:46]} 26.
Bh4 {[%clk 00:24:47]} {[%emt 00:02:31]} b4 {[%clk 00:19:25]} {[%emt 00:01:19]}
27. Bxf6 {[%clk 00:25:11]} {[%emt 00:00:06]} gxf6 {[%clk 00:09:59]} {[%emt
00:09:56]} 28. Nxd5 {[%clk 00:25:20]} {[%emt 00:00:21]} Qd8 {[%clk 00:10:12]}
{[%emt 00:00:17]} 29. Qg4+ {[%clk 00:14:24]} {[%emt 00:11:25]} Kh8 {[%clk
00:10:41]} 30. Qh4 {[%clk 00:14:33]} {[%emt 00:00:23]} Kg7 {[%clk 00:10:05]}
{[%emt 00:01:06]} 31. Be4 {[%clk 00:10:47]} {[%emt 00:04:16]} Bb5 {[%clk
00:08:04]} {[%emt 00:02:31]} 32. b3 {[%clk 00:09:56]} {[%emt 00:01:22]} a5
{[%clk 00:07:29]} {[%emt 00:01:04]} 33. g3 {[%clk 00:06:57]} {[%emt 00:03:29]}
a4 {[%clk 00:07:01]} {[%emt 00:00:59]} 34. Kg2 {[%clk 00:07:10]} {[%emt
00:00:16]} axb3 {[%clk 00:06:13]} {[%emt 00:01:17]} 35. axb3 {[%clk 00:07:35]}
{[%emt 00:00:06]} Be2 {[%clk 00:04:18]} {[%emt 00:02:25]} 36. Bf3 {[%clk
00:04:06]} {[%emt 00:03:59]} Bd3 {[%clk 00:04:47]} {[%emt 00:00:02]} 37. g4
{[%clk 00:04:06]} {[%emt 00:00:30]} h6 {[%clk 00:04:40]} {[%emt 00:00:37]} 38.
Qe1 {[%clk 00:03:37]} {[%emt 00:00:58]} Qa5 {[%clk 00:02:53]} {[%emt 00:02:17]}
39. Qd2 {[%clk 00:03:05]} {[%emt 00:01:03]} Ba6 {[%clk 00:03:21]} {[%emt
00:00:01]} 40. Qf2 {[%clk 00:01:46]} {[%emt 00:01:50]} Qa3 {[%clk 00:00:46]}
{[%emt 00:03:04]} 41. Qc2 {[%clk 00:11:15]} {[%emt 00:21:02]} Qa1 {[%clk
00:27:53]} {[%emt 00:03:23]} 42. Ne3 {[%clk 00:09:40]} {[%emt 00:02:05]} Qxd4
{[%clk 00:26:18]} {[%emt 00:02:04]} 43. Nc4 {[%clk 00:10:03]} {[%emt 00:00:08]}
Bc5 {[%clk 00:20:49]} {[%emt 00:05:59]} 44. Kh3 {[%clk 00:09:22]} {[%emt
00:01:11]} Bb5 {[%clk 00:15:21]} {[%emt 00:05:58]} 45. Be4 {[%clk 00:03:04]}
{[%emt 00:06:48]} Qg1 {[%clk 00:11:39]} {[%emt 00:04:13]} 46. Qd3 {[%clk
00:02:53]} {[%emt 00:00:41]} Bd4 {[%clk 00:09:58]} {[%emt 00:02:11]} 47. Qg3
{[%clk 00:01:55]} {[%emt 00:01:30]} Qc1 {[%clk 00:06:24]} {[%emt 00:04:03]} 48.
Bd5 {[%clk 00:01:22]} {[%emt 00:01:02]} Qf1+ {[%clk 00:04:52]} {[%emt
00:02:02]} 49. Qg2 {[%clk 00:01:35]} {[%emt 00:00:17]} Qd3+ {[%clk 00:04:48]}
{[%emt 00:00:33]} 50. Qf3 {[%clk 00:01:58]} {[%emt 00:00:07]} Qxf3+ {[%clk
00:00:33]} {[%emt 00:04:45]} 51. Bxf3 {[%clk 00:02:23]} {[%emt 00:00:05]} Bxc4
{[%clk 00:00:54]} {[%emt 00:00:09]} 1/2-1/2

[Event "Elitserien 2019/2020, round 1-3"]
[Site "Uppsala University, Gamla torget, Uppsala, Sweden"]
[Date "2019.10.19"]
[Round "2.26"]
[White "Ahlander, Bjorn"]
[Black "Degerman, Lars"]
[Result "1-0"]
[TimeControl "90 minutes for 40 moves + 30 minutes for the rest of the game + 30 seconds per move from move one."]
[WhiteTitle "IM"]
[BlackTitle "IM"]
[WhiteFideId "1700251"]
[BlackFideId "1700227"]
[WhiteElo "2395"]
[BlackElo "2446"]

1. d4 {[%clk 01:30:56]} {[%emt 00:00:03]} Nf6 {[%clk 01:18:08]} {[%emt
00:12:52]} 2. c4 {[%clk 01:31:19]} {[%emt 00:00:06]} g6 {[%clk 01:18:21]}
{[%emt 00:00:17]} 3. Nc3 {[%clk 01:31:44]} {[%emt 00:00:06]} d5 {[%clk
01:18:43]} {[%emt 00:00:08]} 4. Bg5 {[%clk 01:31:33]} {[%emt 00:00:40]} Ne4
{[%clk 01:19:02]} {[%emt 00:00:12]} 5. Bh4 {[%clk 01:31:58]} {[%emt 00:00:06]}
Nxc3 {[%clk 01:18:57]} {[%emt 00:00:34]} 6. bxc3 {[%clk 01:32:24]} {[%emt
00:00:05]} dxc4 {[%clk 01:19:09]} {[%emt 00:00:19]} 7. e3 {[%clk 01:32:39]}
{[%emt 00:00:14]} Be6 {[%clk 01:05:04]} {[%emt 00:14:34]} 8. Nf3 {[%clk
01:33:00]} {[%emt 00:00:08]} Bg7 {[%clk 01:03:20]} {[%emt 00:02:15]} 9. Be2
{[%clk 01:33:26]} {[%emt 00:00:04]} O-O {[%clk 00:59:37]} {[%emt 00:04:14]} 10.
O-O {[%clk 01:33:49]} {[%emt 00:00:06]} c5 {[%clk 00:46:59]} {[%emt 00:13:08]}
11. Rb1 {[%clk 01:33:56]} {[%emt 00:00:24]} cxd4 {[%clk 00:37:49]} {[%emt
00:09:40]} 12. Nxd4 {[%clk 01:34:18]} {[%emt 00:00:08]} Bd5 {[%clk 00:37:28]}
{[%emt 00:00:50]} 13. Qc2 {[%clk 01:34:38]} {[%emt 00:00:10]} Qc7 {[%clk
00:33:43]} {[%emt 00:04:15]} 14. e4 {[%clk 01:17:00]} {[%emt 00:18:08]} Bc6
{[%clk 00:34:07]} {[%emt 00:00:06]} 15. Bxc4 {[%clk 01:14:11]} {[%emt
00:03:20]} e5 {[%clk 00:33:21]} {[%emt 00:01:14]} 16. Nxc6 {[%clk 01:01:38]}
{[%emt 00:13:04]} Nxc6 {[%clk 00:33:40]} {[%emt 00:00:11]} 17. Rfd1 {[%clk
01:00:41]} {[%emt 00:01:27]} Rac8 {[%clk 00:32:30]} {[%emt 00:01:41]} 18. Qa4
{[%clk 00:49:58]} {[%emt 00:11:14]} Rfe8 {[%clk 00:27:27]} {[%emt 00:05:32]} 19.
Bd5 {[%clk 00:45:40]} {[%emt 00:04:48]} Bf8 {[%clk 00:27:07]} {[%emt 00:00:49]}
20. Rd3 {[%clk 00:43:43]} {[%emt 00:02:27]} Be7 {[%clk 00:24:36]} {[%emt
00:03:01]} 21. Bg3 {[%clk 00:42:18]} {[%emt 00:01:56]} Bc5 {[%clk 00:18:04]}
{[%emt 00:07:02]} 22. Rbd1 {[%clk 00:35:43]} {[%emt 00:07:05]} Bb6 {[%clk
00:14:54]} {[%emt 00:03:40]} 23. Bh4 {[%clk 00:34:34]} {[%emt 00:01:38]} Nb8
{[%clk 00:13:09]} {[%emt 00:02:14]} 24. Bg5 {[%clk 00:30:26]} {[%emt 00:04:39]}
Kg7 {[%clk 00:10:12]} {[%emt 00:03:27]} 25. Rf3 {[%clk 00:23:07]} {[%emt
00:07:49]} Rf8 {[%clk 00:08:53]} {[%emt 00:01:51]} 26. Bf6+ {[%clk 00:22:59]}
{[%emt 00:00:37]} Kg8 {[%clk 00:09:16]} {[%emt 00:00:07]} 27. Qa3 {[%clk
00:20:25]} {[%emt 00:03:04]} Bc5 {[%clk 00:07:01]} {[%emt 00:02:45]} 28. Qc1
{[%clk 00:18:46]} {[%emt 00:02:09]} Be7 {[%clk 00:04:34]} {[%emt 00:02:57]} 29.
Rdd3 {[%clk 00:19:08]} {[%emt 00:00:08]} Bxf6 {[%clk 00:04:11]} {[%emt
00:00:52]} 30. Rxf6 {[%clk 00:19:33]} {[%emt 00:00:05]} Nd7 {[%clk 00:04:32]}
{[%emt 00:00:09]} 31. Rff3 {[%clk 00:12:19]} {[%emt 00:07:45]} Qb6 {[%clk
00:03:10]} {[%emt 00:01:51]} 32. Bxf7+ {[%clk 00:10:51]} {[%emt 00:01:58]} Rxf7
{[%clk 00:03:33]} {[%emt 00:00:06]} 33. Rxf7 {[%clk 00:11:10]} {[%emt
00:00:12]} Kxf7 {[%clk 00:04:00]} {[%emt 00:00:03]} 34. Rxd7+ {[%clk 00:11:33]}
{[%emt 00:00:07]} Kg8 {[%clk 00:03:07]} {[%emt 00:01:22]} 35. Qd1 {[%clk
00:10:18]} {[%emt 00:01:45]} Qe6 {[%clk 00:01:46]} {[%emt 00:01:51]} 36. h3
{[%clk 00:08:14]} {[%emt 00:02:35]} Rf8 {[%clk 00:01:07]} {[%emt 00:01:09]} 37.
Rxb7 {[%clk 00:03:09]} {[%emt 00:05:36]} Qxa2 {[%clk 00:01:26]} {[%emt
00:00:10]} 38. Qd5+ {[%clk 00:02:34]} {[%emt 00:01:05]} Qxd5 {[%clk 00:01:45]}
{[%emt 00:00:12]} 39. exd5 {[%clk 00:03:02]} {[%emt 00:00:03]} Rc8 {[%clk
00:01:33]} {[%emt 00:00:41]} 40. d6 {[%clk 00:02:24]} {[%emt 00:01:08]} Rd8
{[%clk 00:01:38]} {[%emt 00:00:25]} 41. d7 {[%clk 00:01:31]} {[%emt 00:01:23]}
Kf7 {[%clk 00:00:50]} {[%emt 00:01:17]} 42. Rxa7 {[%clk 00:00:48]} {[%emt
00:01:14]} Ke7 {[%clk 00:30:20]} {[%emt 00:00:59]} 43. Kf1 {[%clk 00:29:16]}
{[%emt 00:02:03]} Rb8 {[%clk 00:30:28]} {[%emt 00:00:22]} 44. d8=Q+ {[%clk
00:23:05]} {[%emt 00:06:41]} 1-0

[Event "Elitserien 2019/2020, round 1-3"]
[Site "Uppsala University, Gamla torget, Uppsala, Sweden"]
[Date "2019.10.19"]
[Round "2.27"]
[White "Livner, Anders"]
[Black "Hillarp Persson, Tiger"]
[Result "1/2-1/2"]
[TimeControl "90 minutes for 40 moves + 30 minutes for the rest of the game + 30 seconds per move from move one."]
[WhiteTitle "FM"]
[BlackTitle "GM"]
[WhiteFideId "1704150"]
[WhiteElo "2356"]
[BlackElo "2558"]

1. Nf3 {[%clk 01:30:54]} {[%emt 00:00:05]} Nf6 {[%clk 01:28:49]} {[%emt
00:02:12]} 2. c4 {[%clk 01:31:10]} {[%emt 00:00:13]} g6 {[%clk 01:29:07]}
{[%emt 00:00:13]} 3. b4 {[%clk 01:27:18]} {[%emt 00:04:22]} e6 {[%clk
01:14:27]} {[%emt 00:15:10]} 4. Qb3 {[%clk 01:24:23]} {[%emt 00:03:24]} Nc6
{[%clk 01:10:09]} {[%emt 00:04:48]} 5. b5 {[%clk 01:14:47]} {[%emt 00:10:07]}
Na5 {[%clk 01:09:16]} {[%emt 00:01:23]} 6. Qc3 {[%clk 01:12:20]} {[%emt
00:02:56]} c5 {[%clk 01:01:52]} {[%emt 00:07:55]} 7. Bb2 {[%clk 01:10:58]}
{[%emt 00:01:52]} Bg7 {[%clk 01:02:15]} {[%emt 00:00:07]} 8. d3 {[%clk
01:10:19]} {[%emt 00:01:10]} b6 {[%clk 00:58:56]} {[%emt 00:03:48]} 9. Nbd2
{[%clk 01:06:34]} {[%emt 00:04:15]} d5 {[%clk 00:55:05]} {[%emt 00:04:22]} 10.
e3 {[%clk 01:04:13]} {[%emt 00:02:51]} O-O {[%clk 00:48:31]} {[%emt 00:07:04]}
11. Be2 {[%clk 01:01:45]} {[%emt 00:02:58]} a6 {[%clk 00:31:44]} {[%emt
00:17:17]} 12. a4 {[%clk 01:00:19]} {[%emt 00:01:56]} Nb7 {[%clk 00:27:55]}
{[%emt 00:04:19]} 13. O-O {[%clk 01:00:00]} {[%emt 00:00:50]} Nd6 {[%clk
00:27:26]} {[%emt 00:00:58]} 14. Qc2 {[%clk 00:55:36]} {[%emt 00:04:55]} Bb7
{[%clk 00:25:25]} {[%emt 00:02:31]} 15. Ne5 {[%clk 00:54:25]} {[%emt 00:01:41]}
Qc7 {[%clk 00:24:12]} {[%emt 00:01:42]} 16. Bf3 {[%clk 00:52:57]} {[%emt
00:01:58]} axb5 {[%clk 00:20:37]} {[%emt 00:04:06]} 17. axb5 {[%clk 00:53:05]}
{[%emt 00:00:22]} Nd7 {[%clk 00:20:52]} {[%emt 00:00:15]} 18. Nxd7 {[%clk
00:51:37]} {[%emt 00:01:58]} Qxd7 {[%clk 00:20:38]} {[%emt 00:00:44]} 19. Bxg7
{[%clk 00:48:12]} {[%emt 00:03:56]} Kxg7 {[%clk 00:21:02]} {[%emt 00:00:06]} 20.
Qc3+ {[%clk 00:38:35]} {[%emt 00:10:06]} f6 {[%clk 00:21:14]} {[%emt 00:00:18]}
21. Rfd1 {[%clk 00:37:05]} {[%emt 00:02:00]} Nf5 {[%clk 00:14:15]} {[%emt
00:07:29]} 22. Qb2 {[%clk 00:19:33]} {[%emt 00:18:01]} Nh4 {[%clk 00:06:22]}
{[%emt 00:08:23]} 23. d4 {[%clk 00:13:44]} {[%emt 00:06:20]} Rxa1 {[%clk
00:04:00]} {[%emt 00:02:52]} 24. Qxa1 {[%clk 00:14:07]} {[%emt 00:00:06]} Ra8
{[%clk 00:04:19]} {[%emt 00:00:11]} 25. Qc3 {[%clk 00:09:52]} {[%emt 00:04:45]}
Nxf3+ {[%clk 00:04:33]} {[%emt 00:00:17]} 26. Nxf3 {[%clk 00:09:42]} {[%emt
00:00:41]} dxc4 {[%clk 00:04:50]} {[%emt 00:00:13]} 27. Qxc4 {[%clk 00:09:21]}
{[%emt 00:00:51]} Rd8 {[%clk 00:02:15]} {[%emt 00:03:03]} 28. Ra1 {[%clk
00:05:14]} {[%emt 00:04:38]} Bxf3 {[%clk 00:01:59]} {[%emt 00:00:47]} 29. gxf3
{[%clk 00:05:42]} {[%emt 00:00:02]} cxd4 {[%clk 00:02:22]} {[%emt 00:00:07]} 30.
exd4 {[%clk 00:05:34]} {[%emt 00:00:38]} Rc8 {[%clk 00:01:11]} {[%emt
00:01:41]} 31. Ra7 {[%clk 00:05:01]} {[%emt 00:01:03]} Qxa7 {[%clk 00:01:17]}
{[%emt 00:00:24]} 32. Qxc8 {[%clk 00:05:28]} {[%emt 00:00:03]} Qa1+ {[%clk
00:01:33]} {[%emt 00:00:13]} 33. Kg2 {[%clk 00:05:55]} {[%emt 00:00:04]} Qxd4
{[%clk 00:01:51]} {[%emt 00:00:11]} 34. Qxe6 {[%clk 00:06:09]} {[%emt
00:00:16]} g5 {[%clk 00:00:57]} {[%emt 00:01:25]} 1/2-1/2